[Event "Summer Prague Open-A 2022"]
[Site "Prague"]
[Date "2022.08.06"]
[Round "2.9"]
[White "Zamengo, Fulvio"]
[Black "Philipp, Mathias"]
[Result "0-1"]
[ECO "B34"]
[WhiteElo "2396"]
[BlackElo "2092"]
[Annotator "TA"]
[PlyCount "118"]
[EventDate "2022.08.05"]
[EventType "swiss"]
[EventCountry "CZE"]
[SourceTitle "playchess.com"]
[Source "ChessBase"]
[SourceQuality "1"]
[TimeControl "40/5400+30:1800+30"]

{[%evp 20,118,27,22,0,20,3,0,0,0,0,-63,-88,-72,-17,-31,-53,-58,-19,-33,-10,-22,0,0,28,0,7,-28,-27,-65,-29,-37,-36,-109,-109,-237,-245,-257,-244,-274,-120,-108,-101,-301,-248,-489,-499,-489,-452,-540,-524,-567,-558,-558,-546,-561,-405,-924,-902,-1005,-989,-1202,-937,-916,-844,-4894,-784,-783,-800,-793,-790,-875,-877,-842,-834,-1309,-1302,-29988,-919,-1253,-1177,-1450,-1454,-29981,-29967,-29957,-1466,-1737,-1348,-29973,-29975,-29973,-29975,-29978,-29979,-29980,-29981,-29978,-29977,-29961,-5322]} 1. e4 {[%emt 0:00:18]} c5 {[%emt 0:00:05]} 2. Nf3 {[%emt 0:00:50][%cal Bg1f3,Bf3d4,Bd4b5][%mdl 32]} Nc6 {[%emt 0:00:11]} 3. d4 {[%emt 0:00:28]} cxd4 {[%emt 0:00:05]} 4. Nxd4 {[%emt 0:00:08]} Nf6 {[%emt 0:00:03]} 5. Nc3 {[%emt 0:00:26]} e5 {[%emt 0:00:07]} 6. Ndb5 {[%emt 0:00:53]} d6 {[%emt 0:00:14]} 7. Nd5 {[%emt 0:00:33]} Nxd5 {[%emt 0:00:07]} 8. exd5 {[%emt 0:00:07]} Ne7 {[%emt 0:00:04]} 9. c4 {[%emt 0:01:05]} Ng6 {[%emt 0:00:05]} 10. Qa4 {[%emt 0:07:08]} Bd7 {[%emt 0:00:48]} 11. Qb4 {[%emt 0:00:08]} Bf5 {[%emt 0:01:23] B33: Sicilian: Pelikan and Sveshnikov Variations.} 12. Be3 {[%emt 0:03:19]} (12. Bg5 $5 {[%cal Rg5d8]} Qxg5 13. Nc7+ Kd8 14. Nxa8 $11) 12... a6 {[%emt 0:02:19]} 13. Nc3 {[%emt 0:00:18]} Be7 {[%emt 0:00:16] [#] The position is equal.} 14. O-O-O $146 {[%emt 0:18:02]} ({Predecessor:} 14. g3 O-O 15. h4 e4 16. Be2 Ne5 17. c5 dxc5 18. Bxc5 a5 19. Qa3 Re8 20. Bxe7 Rxe7 {1-0 (62) Pichot,A (2630)-Horvath,D (2469) Chess.com INT 2021}) 14... O-O {[%emt 0:04:30]} 15. Bd3 {[%emt 0:00:12]} (15. Qxb7 $11 Bg5 16. Qc6) 15... Bxd3 $15 {[%emt 0:01:57]} 16. Rxd3 {[%emt 0:00:09]} Qc7 {[%emt 0:00:12]} (16... Qd7 $17) 17. Bb6 {[%emt 0:28:31]} Qd7 {[%emt 0:03:19]} 18. g3 {[%emt 0:00:09] Prevents Nf4.} Qf5 {[%emt 0:09:02]} 19. Rd2 {[%emt 0:06:09]} Rac8 {[%emt 0:05:39] Black wants to play ...e4.} 20. Re1 {[%emt 0:06:25] Against e4} Qg4 {[%emt 0:02:42]} 21. b3 {[%emt 0:07:40]} f5 {[%emt 0:04:50]} 22. Kc2 {[%emt 0:10:55]} Rf7 {[%emt 0:08:21]} 23. Qa4 {[%emt 0:02:49]} Bg5 $36 {[%emt 0:04:10][%cal Be7g5,Bg5f6,Bf6e5][%mdl 2080] Black has some pressure.} 24. Rde2 {[%emt 0:01:19]} (24. f4 $2 exf4 25. gxf4 (25. Re8+ $2 Rxe8 26. Qxe8+ Nf8 $17) 25... Bxf4 26. Re8+ Rxe8 27. Qxe8+ Nf8 $19) 24... Bf6 {[%emt 0:02:54]} (24... Qf3 {is interesting.} 25. h4 Bf6 26. Rd2 e4) 25. Qa3 {[%emt 0:03:36]} Rd7 {[%emt 0:03:37]} 26. Qc1 {[%emt 0:00:22]} ({White should try} 26. Rd2 $15) 26... e4 $17 {[%emt 0:00:39][%cal Be5e4,Be4f3][%mdl 32]} 27. f4 {[%emt 0:00:42]} (27. h4 $17) 27... exf3 $1 $19 {[%emt 0:02:25]} (27... Qf3 28. Qd2 $14) 28. Re6 {[%emt 0:00:55]} Be5 {[%emt 0:01:32]} 29. Qe3 {[%emt 0:00:31]} Rf8 {[%emt 0:01:02]} (29... f4 $19 30. Qe4 Qh5) 30. Rf1 $17 {[%emt 0:00:26]} f4 $1 {[%emt 0:00:37]} 31. Qe4 {[%emt 0:00:20]} (31. Qxf3 $17 {is the only way for White.} Qxf3 32. Rxf3) 31... Qh5 {[%emt 0:00:54]} 32. Bg1 $2 {[%emt 0:00:55]} (32. g4 Qxh2+ 33. Rf2) 32... fxg3 $19 {[%emt 0:01:48]} 33. hxg3 {[%emt 0:00:05]} Qh3 {[%emt 0:00:27]} 34. Qd3 {[%emt 0:01:04]} Qxg3 {[%emt 0:02:30]} 35. Be3 {[%emt 0:00:25]} Nf4 {[%emt 0:05:56]} 36. Bxf4 {[%emt 0:00:13]} Rxf4 {[%emt 0:00:34]} 37. Nd1 {[%emt 0:00:52]} Qg5 {[%emt 0:04:05]} 38. b4 {[%emt 0:00:21]} (38. Re8+ $142 Kf7 39. Re6) 38... Rc7 {[%emt 0:04:40]} 39. c5 {[%emt 0:00:10]} Rxb4 {[%emt 0:00:52]} 40. c6 {[%emt 0:00:54]} bxc6 {[%emt 0:01:12]} 41. Re8+ {[%emt 0:07:06]} Kf7 {[%emt 0:00:05]} 42. Rxe5 {[%emt 0:04:56]} dxe5 {[%emt 0:12:24]} ({Not} 42... Qxe5 43. Qxf3+ Kg6 44. Rg1+ Kh6 45. Rh1+ Kg6 46. Rg1+ Kh6 47. Rh1+ Kg6 48. Rg1+ $11) (42... cxd5+ $142 43. Nc3 Qxe5 44. Rxf3+ Ke6) 43. d6 {[%emt 0:00:43]} Rd7 {[%emt 0:00:47] And now ...e4 would win.} 44. Rxf3+ {[%emt 0:01:29]} Rf4 {[%emt 0:01:49] aiming for ...Qg2+.} 45. Qb3+ {[%emt 0:00:07]} Kf6 {[%emt 0:01:11] Hoping for ...Qg2+.} 46. Rd3 {[%emt 0:02:53]} e4 {[%emt 0:12:23]} 47. Rc3 {[%emt 0:06:00]} Rxd6 {[%emt 0:01:01]} 48. Qb8 {[%emt 0:03:42] [#]} Re6 {[%emt 0:05:42]} (48... Rd2+ $142 $3 49. Kc1 {[#]} Rxd1+ $1 {[%mdl 512]} 50. Kxd1 Qg1+ 51. Kc2 Rf2+ 52. Kb3 Qb1+ 53. Ka4 Qxb8 54. Rxc6+ Ke7 55. Rc7+ Qxc7 56. Kb3 Rc2 57. Kb4 Qc4+ 58. Ka5 Qb5#) 49. a4 {[%emt 0:03:04]} Rf3 {[%emt 0:02:11] ...e3 is the strong threat.} 50. Qd8+ {[%emt 0:01:33]} Kg6 {[%emt 0:00:16]} 51. Qc8 {[%emt 0:00:06]} Rxc3+ {[%emt 0:00:16]} 52. Nxc3 {[%emt 0:00:06] KQR-KQN} Qe5 {[%emt 0:00:34]} (52... Qf5 $142 53. Qxa6 e3+ 54. Kb2 e2 55. Nxe2 Qf2 56. Qd3+ Kf7 57. Kb3 Rxe2 58. Qd7+ Re7 59. Qxc6 Re3+ 60. Kc4 Qe2+ 61. Kb4 Qe1+ 62. Kb5 Re5+ 63. Ka6 Re6 64. Kb7 Rxc6 65. Kxc6 Ke6 66. Kc5 Qc3+ 67. Kb5 Kd6 68. a5 Qb3+ 69. Ka6 Kc7 70. Ka7 Qb7#) 53. Qxa6 {[%emt 0:00:12]} e3 {[%emt 0:00:16] ( -> ...e2)} 54. Qe2 {[%emt 0:00:16]} h5 {[%emt 0:01:01] Black mates.} 55. Kb3 {[%emt 0:01:04]} Rd6 {[%emt 0:00:41]} 56. Qg2+ {[%emt 0:01:07]} Kh6 {[%emt 0:00:34]} 57. a5 {[%emt 0:00:34]} Qxa5 {[%emt 0:01:12]} 58. Qe4 {[%emt 0:00:11]} Qg5 {[%emt 0:00:20]} 59. Qe8 {[%emt 0:00:06]} Rd8 {[%emt 0:01:11] Weighted Error Value: White=0.68/Black=0.49} (59... Qf4 $142 60. Qh8+ Kg6 61. Qb8 Qf7+ 62. Kb4 Rd4+ 63. Ka3 Rd3 64. Kb4 e2 65. Qe5 Qb7+ 66. Kc5 Qa7+ 67. Kc4 Qa6+ 68. Kb3 Qb5+ 69. Qxb5 Rxc3+ 70. Kxc3 e1=Q+ 71. Kd3 cxb5 72. Kd4 h4 73. Kc5 h3 74. Kxb5 h2 75. Kc4 h1=Q 76. Kb3 Qd5+ 77. Kc2 Qed2+ 78. Kb1 Qh1#) 0-1

[Event "Summer Prague Open-A 2022"]
[Site "Prague"]
[Date "2022.08.06"]
[Round "2.11"]
[White "Hollan, Martin"]
[Black "Bonassi, Tommaso"]
[Result "1-0"]
[ECO "B52"]
[WhiteElo "2399"]
[BlackElo "2087"]
[Annotator "TA"]
[PlyCount "63"]
[EventDate "2022.08.05"]
[EventType "swiss"]
[EventCountry "CZE"]
[SourceTitle "playchess.com"]
[Source "ChessBase"]
[SourceQuality "1"]
[TimeControl "40/5400+30:1800+30"]

{[%evp 23,63,35,45,19,41,22,30,33,35,26,31,22,43,39,72,65,85,73,72,44,133,54,129,126,114,111,138,75,102,81,111,106,186,188,619,616,1053,1038,29994,29995,29995,29996]} 1. e4 {[%emt 0:02:03]} c5 {[%emt 0:00:06]} 2. Nf3 {[%emt 0:00:23]} d6 {[%emt 0:00:10]} 3. Bb5+ {[%emt 0:00:07]} Bd7 {[%emt 0:00:09]} 4. Bxd7+ {[%emt 0:00:08]} Nxd7 {[%emt 0:00:07]} 5. O-O {[%emt 0:00:07]} Ngf6 {[%emt 0:00:07]} 6. Qe2 {[%emt 0:00:05]} e6 {[%emt 0:01:16]} 7. b3 {[%emt 0:00:06]} Be7 {[%emt 0:00:45]} 8. Bb2 {[%emt 0:00:05]} O-O {[%emt 0:00:13]} 9. d4 {[%emt 0:00:13]} cxd4 {[%emt 0:05:47]} 10. Nxd4 {[%emt 0:00:07]} a6 {[%emt 0:00:21]} 11. c4 {[%emt 0:00:14]} Rc8 {[%emt 0:00:15] Recently 11...Qa5 got a lot of attention.} 12. Nc3 {[%emt 0:07:09]} Qa5 {[%emt 0:03:38]} 13. Rfd1 {B52: Sicilian: Moscow Variation with 3...Bd7.} Qg5 {[%emt 0:14:53] [#]} 14. Kh1 $146 {[%emt 0:20:37]} ({Predecessor:} 14. Rac1 Nh5 15. Nf3 Qg6 16. Ba3 Nf4 17. Qf1 Nc5 18. Kh1 Nxe4 19. Nxe4 Qxe4 20. Bxd6 Bxd6 21. Rxd6 {½-½ (47) Estrada Nieto,J (2395)-El Ghazali,Y (2385) Cairo 1998}) 14... Ne5 {[%emt 0:20:34]} 15. g3 {[%emt 0:06:24] [#] Strongly threatening f4. White has an edge.} Nc6 {[%emt 0:00:19]} 16. Nxc6 {[%emt 0:13:23]} Rxc6 {[%emt 0:00:10]} 17. f3 {[%emt 0:02:17]} Bd8 {[%emt 0:10:16]} 18. Rd3 {[%emt 0:05:20]} Bc7 {[%emt 0:02:31]} 19. Rad1 {[%emt 0:06:47]} Qa5 {[%emt 0:02:36]} 20. a4 {[%emt 0:04:30]} Nd7 {[%emt 0:06:28]} 21. Ba3 {[%emt 0:06:20]} Ne5 {[%emt 0:00:55]} (21... Qb6 $14) 22. Re3 {[%emt 0:02:19]} (22. b4 $16 Qb6 23. Rd4) 22... Bb8 {[%emt 0:10:00]} (22... Qb6 $1 $14) 23. f4 $16 {[%emt 0:01:33] Threatens to win with b4.} Ng6 {[%emt 0:00:07]} 24. Red3 {[%emt 0:02:48] White is more active.} Re8 {[%emt 0:01:15]} 25. Nb1 {[%emt 0:07:08]} (25. Qe3 $142) 25... Qb6 {[%emt 0:01:59]} 26. Nd2 {[%emt 0:01:42][%cal Bb1d2,Bd2f3,Bf3g5][%mdl 32]} Nf8 {[%emt 0:07:11]} 27. Nf3 {[%emt 0:00:40]} Nd7 {[%emt 0:01:23]} (27... Rcc8 $16) 28. e5 $18 {[%emt 0:02:57]} dxe5 $2 {[%emt 0:01:22]} (28... Rcc8 29. Bxd6 h6) 29. Rxd7 {[%emt 0:01:04] And now Ng5 would win.} exf4 {[%emt 0:01:06]} 30. Ng5 {[%emt 0:01:26] Qh5 would kill now.} Rc7 {[%emt 0:02:42]} 31. Qh5 {[%emt 0:02:03][%csl Gg5][%cal Rh5h7]} Qc6+ {[%emt 0:00:11] [#]} 32. R1d5 $3 {[%emt 0:00:23][%mdl 512] Weighted Error Value: White=0.16 (very precise) /Black=0.90} 1-0

[Event "Summer Prague Open-A 2022"]
[Site "Prague"]
[Date "2022.08.06"]
[Round "2.12"]
[White "Dette, Jan"]
[Black "Meissner, Felix"]
[Result "0-1"]
[ECO "B91"]
[WhiteElo "2078"]
[BlackElo "2381"]
[Annotator "TA"]
[PlyCount "80"]
[EventDate "2022.08.05"]
[EventType "swiss"]
[EventCountry "CZE"]
[SourceTitle "playchess.com"]
[Source "ChessBase"]
[SourceQuality "1"]
[TimeControl "40/5400+30:1800+30"]

{[%evp 11,80,15,22,6,8,10,11,0,30,32,22,24,16,0,0,-14,-10,-16,-15,-14,-14,-34,-29,-35,0,0,11,13,8,6,4,-6,18,2,22,0,0,-36,-25,-87,94,0,0,0,0,0,0,0,0,-555,-227,-346,-346,-346,-346,-346,-346,-335,-331,-330,-320,-300,-285,-281,-296,-444,-433,-415,-412,-431,-437]} 1. e4 {[%emt 0:00:02]} c5 {[%emt 0:00:06]} 2. Nf3 {[%emt 0:00:09]} d6 {[%emt 0:00:07]} 3. d4 {[%emt 0:00:04]} cxd4 {[%emt 0:00:08]} 4. Nxd4 {[%emt 0:00:05]} Nf6 {[%emt 0:00:05]} 5. Nc3 {[%emt 0:00:04]} a6 {[%emt 0:00:05]} 6. g3 {[%emt 0:00:05]} e5 {[%emt 0:00:09]} 7. Nf3 {[%emt 0:00:05][%cal Bd4f3,Bf3h4,Bh4g2,Bg2e3][%mdl 32] B91: Sicilian Najdorf: 6 g3.} Be7 {[%emt 0:00:43]} 8. Nh4 {[%emt 0:00:06]} O-O {[%emt 0:01:14]} 9. Ng2 {[%emt 0:00:06] The position is equal.} Nc6 {[%emt 0:04:39][%cal Bb8c6,Bc6d4,Bd4f5,Bf5e3][%mdl 32]} 10. Ne3 {[%emt 0:03:00]} Nd4 {[%emt 0:01:50]} 11. Bg2 {[%emt 0:01:53]} Be6 {[%emt 0:01:31]} 12. O-O {[%emt 0:02:10]} Rc8 {[%emt 0:02:01]} 13. Ncd5 {[%emt 0:07:09]} Nxd5 {[%emt 0:01:56]} 14. exd5 {[%emt 0:01:33]} Bd7 {[%emt 0:00:40]} 15. a4 {[%emt 0:03:56]} Nf5 {[%emt 0:07:22] [#]} 16. Qd3 $146 {[%emt 0:32:34]} ({Predecessor:} 16. a5 Bg5 17. Nxf5 Bxf5 18. Bxg5 Qxg5 19. c3 Qe7 20. Qd2 Bd7 {½-½ (20) Noetzel,F-Schmitz,T Germany 1991}) 16... Nxe3 {[%emt 0:00:46]} 17. Bxe3 {[%emt 0:00:08]} b5 {[%emt 0:02:07]} 18. b3 {[%emt 0:02:28]} f5 {[%emt 0:08:57]} 19. axb5 {[%emt 0:02:55]} axb5 {[%emt 0:00:59]} 20. Ra7 {[%emt 0:08:11]} Bf6 {[%emt 0:08:37]} 21. Qd2 {[%emt 0:03:21]} Rf7 {[%emt 0:07:30]} 22. Qb4 {[%emt 0:02:25]} Qf8 {[%emt 0:12:03]} 23. Ra6 {[%emt 0:07:15]} Be7 {[%emt 0:06:20]} 24. f4 {[%emt 0:03:07]} (24. Ra7 $5 {[%cal Ra7d7]} Bf6 25. Rc1 $11) 24... Rxc2 {[%emt 0:09:24]} 25. fxe5 {[%emt 0:00:12]} (25. Rfa1 $11 {keeps the balance.}) 25... Bc8 $2 {[%emt 0:05:22] [#]} (25... dxe5 $17 {stays on course.} 26. d6 Qc8) 26. e6 {[%emt 0:06:36]} (26. Rb6 $1 $16 {Threatens to win with e6.} dxe5 27. d6) 26... Bxa6 $11 {[%emt 0:00:56]} 27. exf7+ {[%emt 0:01:56]} Qxf7 {[%emt 0:00:05][%cal Oc2g2]} 28. Be4 {[%emt 0:00:14]} Re2 $36 {[%emt 0:02:11][%mdl 2048] Black has good play.} 29. Rxf5 {[%emt 0:00:12]} Bf6 {[%emt 0:02:20][%cal Be7f6,Bf6g5,Bg5e3][%mdl 32]} 30. Bg5 {[%emt 0:03:14][%mdl 8192]} (30. Bf2 $11) 30... Qe8 {[%emt 0:04:51]} (30... Bc8 $142 31. Rf1 Qa7+ 32. Kh1 Bh3 33. Qxd6 Bxf1 34. Qe6+ Qf7 35. Qxf7+ Kxf7 36. Bxf6 gxf6) 31. Bf3 {[%emt 0:03:11]} (31. Bxf6 {was the only defense.} Rxe4 32. Bd4 (32. Qxd6 Re1+ 33. Kg2 Qe4+ 34. Kh3 Qxf5+ 35. g4 Re3+)) 31... Bxg5 $19 {[%emt 0:02:19]} 32. Bxe2 {[%emt 0:01:28]} Qxe2 {[%emt 0:00:29]} 33. Qxd6 {[%emt 0:01:27][%csl Gd6][%cal Rf5f8] [#]} Be3+ $1 {[%emt 0:00:42]} 34. Kh1 {[%emt 0:00:07][%csl Gd6][%cal Rf5f8]} Qd1+ {[%emt 0:00:25]} 35. Kg2 {[%emt 0:00:07][%csl Gd6][%cal Rf5f8]} Qc2+ {[%emt 0:00:08]} 36. Kf3 {[%emt 0:01:02][%csl Gd6][%cal Rf5f8]} Qxf5+ {[%emt 0:00:30]} 37. Kxe3 {[%emt 0:00:05]} Bc8 {[%emt 0:01:00]} 38. Qc7 {[%emt 0:01:40]} (38. Qb8 $142) 38... Bd7 {[%emt 0:01:20]} ({Don't blunder} 38... Qg5+ $2 39. Kd4 Qd2+ 40. Kc5 Qe3+ 41. Kd6 $19) 39. Kd4 {[%emt 0:00:17]} Qf2+ {[%emt 0:01:27]} 40. Kc3 {[%emt 0:00:33]} Qe3+ {[%emt 0:01:25] Weighted Error Value: White=0.49/Black=0.21 (precise)} 0-1

[Event "Summer Prague Open-A 2022"]
[Site "Prague"]
[Date "2022.08.06"]
[Round "2.13"]
[White "Roubalik, Jakub"]
[Black "Valkova, Angelika"]
[Result "1/2-1/2"]
[ECO "D36"]
[WhiteElo "2380"]
[BlackElo "2075"]
[Annotator "TA"]
[PlyCount "70"]
[EventDate "2022.08.05"]
[EventType "swiss"]
[EventCountry "CZE"]
[SourceTitle "playchess.com"]
[Source "ChessBase"]
[SourceQuality "1"]
[TimeControl "40/5400+30:1800+30"]

{[%evp 11,70,11,22,20,35,17,29,0,0,-6,-18,-22,-3,-21,10,0,7,0,5,0,6,0,0,0,0,-14,0,0,16,10,10,-14,-6,-33,0,0,0,0,0,-25,-34,-51,-16,-34,-31,-25,-16,-15,-4,-20,0,-1,0,0,0,-15,0,0,2,-36,0]} 1. c4 {[%emt 0:00:03]} e6 {[%emt 0:00:08]} 2. Nc3 {[%emt 0:00:31]} d5 {[%emt 0:00:09]} 3. cxd5 {[%emt 0:00:16]} exd5 {[%emt 0:00:05]} 4. d4 {[%emt 0:00:04]} Nf6 {[%emt 0:00:07]} 5. Bg5 {[%emt 0:00:18][%cal Bc1g5,Bg5h4,Bh4g3][%mdl 32]} c6 {[%emt 0:00:14]} 6. Qc2 {[%emt 0:00:43]} h6 {[%emt 0:00:14]} 7. Bh4 {[%emt 0:00:27] D36: Queen's Gambit Declined: Exchange Variation: Main line (5 Bg5 c6 6 Qc2).} g6 {[%emt 0:00:16]} 8. e3 {[%emt 0:02:07]} Bf5 {[%emt 0:00:15]} 9. Qb3 {[%emt 0:02:02] White has an edge.} g5 {[%emt 0:00:09]} 10. Bg3 {[%emt 0:07:37]} Qb6 {[%emt 0:00:07]} 11. f3 {[%emt 0:04:14]} Nbd7 {[%emt 0:01:59]} 12. Nge2 {[%emt 0:02:20] [#]} Bg7 $146 {[%emt 0:09:16]} ({Predecessor:} 12... Qxb3 13. axb3 a6 14. Kd2 Bg7 15. Bd6 Bg6 16. Na4 Bf8 17. Bxf8 Kxf8 18. b4 Kg7 19. Nc1 Rhe8 {0-1 (33) Arutinian,D (2577)-Zhang,Z (2414) Qinhuangdao 2011}) 13. Bd6 {[%emt 0:05:06]} Bf8 {[%emt 0:02:18]} 14. Bxf8 {[%emt 0:00:53]} Kxf8 {[%emt 0:03:10]} 15. Ng3 {[%emt 0:02:22]} Bg6 {[%emt 0:01:18]} 16. Be2 {[%emt 0:10:12]} Kg7 {[%emt 0:09:04]} 17. Kf2 {[%emt 0:03:53]} Rae8 {[%emt 0:07:30]} 18. Rad1 {[%emt 0:13:18]} Qxb3 {[%emt 0:15:58]} 19. axb3 {[%emt 0:00:02]} Bc2 {[%emt 0:00:45]} 20. Ra1 {[%emt 0:00:20]} a6 {[%emt 0:00:06]} ({Don't take} 20... Bxb3 21. Nf5+ (21. Rxa7 Bc2 $16) 21... Kh7 22. h4 $16 (22. Rxa7 Bc2 $16)) 21. b4 {[%emt 0:05:22]} Nb6 {[%emt 0:02:22][%cal Bd7b6,Bb6c8,Bc8d6][%mdl 32]} 22. Ra3 {[%emt 0:04:30]} Nc8 {[%emt 0:02:13]} 23. Na4 {[%emt 0:08:10]} Nd6 {[%emt 0:02:10]} 24. Nc5 {[%emt 0:00:13]} Re7 {[%emt 0:01:05]} 25. Rc3 {[%emt 0:02:09]} Bg6 {[%emt 0:00:21]} 26. h4 {[%emt 0:09:42]} g4 {[%emt 0:13:28]} 27. h5 {[%emt 0:01:44]} Bh7 {[%emt 0:00:10]} 28. Ra3 {[%emt 0:06:10]} gxf3 {[%emt 0:03:19]} 29. gxf3 {[%emt 0:00:07]} Rhe8 {[%emt 0:00:23]} 30. Rc3 {[%emt 0:03:54]} Kh8 {[%emt 0:03:48]} 31. Rh4 {[%emt 0:01:11]} Rg8 {[%emt 0:09:18]} 32. Rf4 {[%emt 0:00:05]} Nde8 {[%emt 0:03:49][%cal Og8g3] Threatens to win with ...Rxg3!} 33. Rh4 {[%emt 0:03:21] Active counter play!} Nd6 {[%emt 0:00:06]} 34. Rf4 {[%emt 0:00:53]} Nde8 {[%emt 0:00:05][%cal Og8g3] White must now prevent ...Rxg3!} 35. Rh4 {[%emt 0:01:06]} Nd6 {[%emt 0:00:14] Weighted Error Value: White=0.09 (flawless) /Black=0.09 (flawless)} 1/2-1/2